[Event "Masters Tournament (MTO)"]
[Site "Biel, Switzerland"]
[Date "2026.07.20"]
[Round "7.20"]
[White "Aryan, Mehta"]
[Black "Arsenie, Cristian Marc"]
[Result "0-1"]
[TimeControl "100+30+30sec/move"]
[WhiteTitle "-"]
[BlackTitle "-"]
[WhiteFideId "33329664"]
[BlackFideId "1345923"]
[WhiteElo "1979"]
[BlackElo "2300"]

1. d4 {[%clk 01:40:50]} {[%emt 00:00:09]} Nf6 {[%clk 01:40:55]} {[%emt
00:00:06]} 2. c4 {[%clk 01:41:14]} {[%emt 00:00:07]} e6 {[%clk 01:41:21]}
{[%emt 00:00:03]} 3. Nf3 {[%clk 01:41:37]} {[%emt 00:00:05]} h6 {[%clk
01:41:48]} {[%emt 00:00:06]} 4. Nc3 {[%clk 01:40:23]} {[%emt 00:01:42]} Bb4
{[%clk 01:42:11]} {[%emt 00:00:06]} 5. e3 {[%clk 01:38:05]} {[%emt 00:02:48]}
Bxc3+ {[%clk 01:42:27]} {[%emt 00:00:15]} 6. bxc3 {[%clk 01:38:28]} {[%emt
00:00:06]} d6 {[%clk 01:42:52]} {[%emt 00:00:06]} 7. Bd3 {[%clk 01:36:46]}
{[%emt 00:02:11]} O-O {[%clk 01:42:47]} {[%emt 00:00:35]} 8. O-O {[%clk
01:36:24]} {[%emt 00:00:53]} e5 {[%clk 01:42:51]} {[%emt 00:00:25]} 9. e4
{[%clk 01:30:34]} {[%emt 00:06:20]} Bg4 {[%clk 01:43:08]} {[%emt 00:00:12]} 10.
Be3 {[%clk 01:18:36]} {[%emt 00:12:28]} Nc6 {[%clk 01:37:46]} {[%emt 00:05:52]}
11. Re1 {[%clk 01:05:16]} {[%emt 00:13:51]} Re8 {[%clk 01:30:40]} {[%emt
00:07:35]} 12. d5 {[%clk 00:58:51]} {[%emt 00:06:56]} Ne7 {[%clk 01:31:01]}
{[%emt 00:00:08]} 13. c5 {[%clk 00:57:19]} {[%emt 00:02:04]} Ng6 {[%clk
01:23:31]} {[%emt 00:08:00]} 14. h3 {[%clk 00:52:50]} {[%emt 00:04:58]} Bc8
{[%clk 01:19:20]} {[%emt 00:04:41]} 15. c4 {[%clk 00:43:19]} {[%emt 00:10:02]}
b6 {[%clk 01:18:37]} {[%emt 00:01:13]} 16. cxd6 {[%clk 00:41:53]} {[%emt
00:01:55]} cxd6 {[%clk 01:19:00]} {[%emt 00:00:07]} 17. a4 {[%clk 00:41:01]}
{[%emt 00:01:22]} a5 {[%clk 01:14:35]} {[%emt 00:04:55]} 18. Rb1 {[%clk
00:39:58]} {[%emt 00:01:33]} Nd7 {[%clk 01:11:48]} {[%emt 00:03:17]} 19. Re2
{[%clk 00:31:03]} {[%emt 00:09:25]} Ba6 {[%clk 01:05:17]} {[%emt 00:07:01]} 20.
Reb2 {[%clk 00:29:52]} {[%emt 00:01:41]} Rb8 {[%clk 01:05:43]} {[%emt
00:00:05]} 21. g3 {[%clk 00:23:54]} {[%emt 00:06:27]} Rb7 {[%clk 00:59:11]}
{[%emt 00:07:01]} 22. h4 {[%clk 00:19:37]} {[%emt 00:04:48]} Qb8 {[%clk
00:58:54]} {[%emt 00:00:47]} 23. h5 {[%clk 00:18:41]} {[%emt 00:01:27]} Ne7
{[%clk 00:59:19]} {[%emt 00:00:05]} 24. Ne1 {[%clk 00:16:46]} {[%emt 00:02:24]}
Rc8 {[%clk 00:55:12]} {[%emt 00:04:37]} 25. Qe2 {[%clk 00:16:44]} {[%emt
00:00:31]} Nc5 {[%clk 00:51:03]} {[%emt 00:04:40]} 26. Bxc5 {[%clk 00:16:59]}
{[%emt 00:00:15]} Rxc5 {[%clk 00:51:07]} {[%emt 00:00:26]} 27. Nc2 {[%clk
00:17:08]} {[%emt 00:00:21]} Qc7 {[%clk 00:49:11]} {[%emt 00:02:26]} 28. Na3
{[%clk 00:13:38]} {[%emt 00:03:59]} Rb8 {[%clk 00:44:02]} {[%emt 00:05:40]} 29.
Rb3 {[%clk 00:11:40]} {[%emt 00:02:28]} Kh8 {[%clk 00:41:02]} {[%emt 00:03:29]}
30. Kh2 {[%clk 00:10:02]} {[%emt 00:02:08]} Nc8 {[%clk 00:38:50]} {[%emt
00:02:43]} 31. Rg1 {[%clk 00:09:32]} {[%emt 00:01:00]} Qd7 {[%clk 00:36:18]}
{[%emt 00:03:01]} 32. Nb5 {[%clk 00:07:57]} {[%emt 00:02:06]} Bxb5 {[%clk
00:35:37]} {[%emt 00:01:12]} 33. axb5 {[%clk 00:08:13]} {[%emt 00:00:14]} Ne7
{[%clk 00:32:11]} {[%emt 00:03:55]} 34. Qf3 {[%clk 00:08:03]} {[%emt 00:00:40]}
Ng8 {[%clk 00:32:20]} {[%emt 00:00:20]} 35. g4 {[%clk 00:07:16]} {[%emt
00:01:18]} Qe7 {[%clk 00:31:46]} {[%emt 00:01:04]} 36. Kh3 {[%clk 00:06:19]}
{[%emt 00:01:27]} Nf6 {[%clk 00:29:52]} {[%emt 00:02:24]} 37. Qe3 {[%clk
00:03:17]} {[%emt 00:03:32]} Rbc8 {[%clk 00:27:19]} {[%emt 00:03:04]} 38. f3
{[%clk 00:02:16]} {[%emt 00:01:30]} Nh7 {[%clk 00:26:46]} {[%emt 00:01:03]} 39.
Kg3 {[%clk 00:02:02]} {[%emt 00:00:44]} Ng5 {[%clk 00:24:35]} {[%emt 00:02:41]}
40. Be2 {[%clk 00:01:13]} {[%emt 00:01:19]} Qf6 {[%clk 00:21:55]} {[%emt
00:03:08]} 41. Ra3 {[%clk 00:25:15]} {[%emt 00:06:30]} Kg8 {[%clk 00:47:38]}
{[%emt 00:04:47]} 42. Rh1 {[%clk 00:22:29]} {[%emt 00:03:16]} Kf8 {[%clk
00:45:31]} {[%emt 00:02:36]} 43. Kf2 {[%clk 00:22:20]} {[%emt 00:00:40]} Ke7
{[%clk 00:43:55]} {[%emt 00:02:07]} 44. Ke1 {[%clk 00:22:19]} {[%emt 00:00:30]}
Kd7 {[%clk 00:39:04]} {[%emt 00:05:22]} 45. Kd2 {[%clk 00:22:20]} {[%emt
00:00:27]} Kc7 {[%clk 00:39:26]} {[%emt 00:00:09]} 46. Kc2 {[%clk 00:20:21]}
{[%emt 00:02:28]} Kb7 {[%clk 00:38:17]} {[%emt 00:01:40]} 47. Kb2 {[%clk
00:20:43]} {[%emt 00:00:07]} Ra8 {[%clk 00:37:37]} {[%emt 00:01:10]} 48. Ra4
{[%clk 00:20:00]} {[%emt 00:01:14]} Rcc8 {[%clk 00:36:22]} {[%emt 00:01:44]} 49.
Raa1 {[%clk 00:19:13]} {[%emt 00:01:16]} Qe7 {[%clk 00:32:51]} {[%emt
00:04:03]} 50. Kb3 {[%clk 00:16:45]} {[%emt 00:02:59]} Qc7 {[%clk 00:31:00]}
{[%emt 00:02:20]} 51. Ka4 {[%clk 00:15:07]} {[%emt 00:02:07]} Rh8 {[%clk
00:29:41]} {[%emt 00:01:50]} 52. Rh2 {[%clk 00:14:16]} {[%emt 00:01:20]} Kc8
{[%clk 00:28:03]} {[%emt 00:02:08]} 53. Rf1 {[%clk 00:12:39]} {[%emt 00:02:06]}
Kd8 {[%clk 00:26:48]} {[%emt 00:01:46]} 54. Rc1 {[%clk 00:11:49]} {[%emt
00:01:20]} Rc8 {[%clk 00:26:36]} {[%emt 00:00:42]} 55. Rhh1 {[%clk 00:12:05]}
{[%emt 00:00:14]} Qc5 {[%clk 00:26:30]} {[%emt 00:00:36]} 56. Qxc5 {[%clk
00:12:14]} {[%emt 00:00:22]} Rxc5 {[%clk 00:26:55]} {[%emt 00:00:05]} 57. Kb3
{[%clk 00:11:41]} {[%emt 00:01:03]} Ke7 {[%clk 00:27:10]} {[%emt 00:00:15]} 58.
Kc3 {[%clk 00:10:41]} {[%emt 00:01:31]} Nh7 {[%clk 00:24:12]} {[%emt 00:03:28]}
59. Kd3 {[%clk 00:10:44]} {[%emt 00:00:26]} Rcc8 {[%clk 00:24:22]} {[%emt
00:00:19]} 60. Rh2 {[%clk 00:10:15]} {[%emt 00:00:59]} Nf6 {[%clk 00:21:50]}
{[%emt 00:03:02]} 61. Rch1 {[%clk 00:06:57]} {[%emt 00:03:49]} Rh7 {[%clk
00:21:22]} {[%emt 00:00:58]} 62. Ke3 {[%clk 00:05:17]} {[%emt 00:02:09]} Rch8
{[%clk 00:21:28]} {[%emt 00:00:23]} 63. Bd1 {[%clk 00:03:14]} {[%emt 00:02:34]}
g6 {[%clk 00:19:02]} {[%emt 00:02:57]} 64. hxg6 {[%clk 00:03:40]} {[%emt
00:00:05]} fxg6 {[%clk 00:19:24]} {[%emt 00:00:07]} 65. Rh4 {[%clk 00:01:29]}
{[%emt 00:02:40]} Kf7 {[%clk 00:18:14]} {[%emt 00:01:41]} 66. R1h2 {[%clk
00:01:07]} {[%emt 00:00:53]} Kg7 {[%clk 00:18:03]} {[%emt 00:00:40]} 67. Rg2
{[%clk 00:00:39]} {[%emt 00:00:58]} Rc8 {[%clk 00:17:11]} {[%emt 00:01:21]} 68.
Kd3 {[%clk 00:00:59]} {[%emt 00:00:11]} Rhh8 {[%clk 00:16:43]} {[%emt
00:00:58]} 69. Ra2 {[%clk 00:01:08]} {[%emt 00:00:21]} Rcf8 {[%clk 00:10:46]}
{[%emt 00:06:26]} 70. Rah2 {[%clk 00:01:09]} {[%emt 00:00:29]} Nd7 {[%clk
00:10:16]} {[%emt 00:01:01]} 71. Kc3 {[%clk 00:01:29]} {[%emt 00:00:10]} Nc5
{[%clk 00:08:44]} {[%emt 00:02:01]} 72. R4h3 {[%clk 00:01:46]} {[%emt
00:00:14]} Nb7 {[%clk 00:07:15]} {[%emt 00:02:00]} 73. Rh1 {[%clk 00:01:19]}
{[%emt 00:00:57]} Nd8 {[%clk 00:07:42]} {[%emt 00:00:03]} 74. Kd3 {[%clk
00:01:24]} {[%emt 00:00:24]} Nf7 {[%clk 00:08:03]} {[%emt 00:00:09]} 75. Ke3
{[%clk 00:01:28]} {[%emt 00:00:26]} Ng5 {[%clk 00:08:30]} {[%emt 00:00:03]} 76.
R3h2 {[%clk 00:01:52]} {[%emt 00:00:06]} Rc8 {[%clk 00:08:17]} {[%emt
00:00:43]} 77. Kd3 {[%clk 00:02:13]} {[%emt 00:00:09]} Nf7 {[%clk 00:08:41]}
{[%emt 00:00:06]} 78. Bb3 {[%clk 00:01:38]} {[%emt 00:01:04]} Kf6 {[%clk
00:08:58]} {[%emt 00:00:14]} 79. Ke3 {[%clk 00:00:38]} {[%emt 00:01:30]} Kg5
{[%clk 00:09:14]} {[%emt 00:00:12]} 80. Ra1 {[%clk 00:00:54]} {[%emt 00:00:16]}
Rh7 {[%clk 00:08:29]} {[%emt 00:01:15]} 81. Rh3 {[%clk 00:00:57]} {[%emt
00:00:27]} Rch8 {[%clk 00:07:58]} {[%emt 00:01:00]} 82. Rg1 {[%clk 00:01:21]}
{[%emt 00:00:07]} Kf6 {[%clk 00:08:16]} {[%emt 00:00:12]} 83. Rgh1 {[%clk
00:01:22]} {[%emt 00:00:29]} h5 {[%clk 00:07:49]} {[%emt 00:00:56]} 84. gxh5
{[%clk 00:01:25]} {[%emt 00:00:27]} Rxh5 {[%clk 00:07:51]} {[%emt 00:00:28]} 85.
Rxh5 {[%clk 00:01:39]} {[%emt 00:00:16]} Rxh5 {[%clk 00:07:57]} {[%emt
00:00:24]} 86. Rf1 {[%clk 00:01:33]} {[%emt 00:00:37]} Rh2 {[%clk 00:07:14]}
{[%emt 00:01:12]} 87. Rd1 {[%clk 00:00:55]} {[%emt 00:01:09]} Rb2 {[%clk
00:06:20]} {[%emt 00:01:24]} 88. Rd3 {[%clk 00:01:19]} {[%emt 00:00:06]} Nd8
{[%clk 00:05:51]} {[%emt 00:00:59]} 89. c5 {[%clk 00:01:14]} {[%emt 00:00:36]}
bxc5 {[%clk 00:05:46]} {[%emt 00:00:35]} 90. Bc4 {[%clk 00:00:47]} {[%emt
00:00:56]} Nb7 {[%clk 00:04:06]} {[%emt 00:02:10]} 91. Rb3 {[%clk 00:00:52]}
{[%emt 00:00:25]} Rxb3+ {[%clk 00:01:35]} {[%emt 00:03:01]} 92. Bxb3 {[%clk
00:01:22]} {[%emt 00:00:01]} Ke7 {[%clk 00:01:36]} {[%emt 00:00:28]} 93. b6
{[%clk 00:01:23]} {[%emt 00:00:29]} Kd8 {[%clk 00:01:09]} {[%emt 00:00:58]} 94.
Bc4 {[%clk 00:01:02]} {[%emt 00:00:50]} a4 {[%clk 00:01:16]} {[%emt 00:00:24]}
95. f4 {[%clk 00:00:38]} {[%emt 00:00:53]} Na5 {[%clk 00:00:59]} {[%emt
00:00:47]} 96. Ba2 {[%clk 00:00:55]} {[%emt 00:00:13]} exf4+ {[%clk 00:00:58]}
{[%emt 00:00:31]} 97. Kxf4 {[%clk 00:01:24]} c4 {[%clk 00:01:02]} {[%emt
00:00:27]} 98. Ke3 {[%clk 00:00:34]} {[%emt 00:01:19]} Kc8 {[%clk 00:01:26]}
{[%emt 00:00:06]} 99. Bb1 {[%clk 00:00:32]} {[%emt 00:00:33]} Kb7 {[%clk
00:01:29]} {[%emt 00:00:26]} 100. Kd4 {[%clk 00:00:43]} {[%emt 00:00:18]} Kxb6
{[%clk 00:01:33]} {[%emt 00:00:26]} 101. e5 {[%clk 00:01:01]} {[%emt 00:00:13]}
dxe5+ {[%clk 00:01:57]} {[%emt 00:00:06]} 102. Kxe5 {[%clk 00:01:30]} Kc5
{[%clk 00:01:23]} {[%emt 00:01:04]} 103. d6 {[%clk 00:01:42]} {[%emt 00:00:18]}
Nc6 {[%clk 00:01:48]} {[%emt 00:00:05]} 104. Ke6 {[%clk 00:01:54]} {[%emt
00:00:19]} a3 {[%clk 00:01:49]} {[%emt 00:00:28]} 105. d7 {[%clk 00:02:20]}
{[%emt 00:00:04]} c3 {[%clk 00:01:52]} {[%emt 00:00:27]} 106. Be4 {[%clk
00:02:41]} {[%emt 00:00:09]} Nd8+ {[%clk 00:01:49]} {[%emt 00:00:32]} 107. Ke7
{[%clk 00:03:08]} {[%emt 00:00:04]} a2 {[%clk 00:01:44]} {[%emt 00:00:35]} 108.
Kxd8 {[%clk 00:03:32]} {[%emt 00:00:05]} a1=Q {[%emt 00:00:06]} 109. Ke7 {[%clk
00:01:25]} {[%emt 00:02:36]} Qe1 {[%clk 00:01:54]} {[%emt 00:00:45]} 110. d8=Q
{[%clk 00:01:45]} {[%emt 00:00:10]} Qxe4+ {[%clk 00:02:18]} {[%emt 00:00:07]}
111. Kf8 {[%clk 00:02:05]} {[%emt 00:00:09]} c2 {[%clk 00:01:59]} {[%emt
00:00:50]} 112. Qc7+ {[%clk 00:02:22]} {[%emt 00:00:13]} Kd4 {[%clk 00:02:07]}
{[%emt 00:00:21]} 113. Qb6+ {[%clk 00:02:32]} {[%emt 00:00:21]} Ke5 {[%clk
00:02:10]} {[%emt 00:00:24]} 114. Qc7+ {[%clk 00:01:51]} {[%emt 00:01:13]} Kf5
{[%clk 00:02:25]} {[%emt 00:00:15]} 115. Qc5+ {[%clk 00:02:02]} {[%emt
00:00:20]} Kg4 {[%clk 00:02:24]} {[%emt 00:00:30]} 116. Qg1+ {[%clk 00:02:22]}
{[%emt 00:00:11]} Kf3 {[%clk 00:02:44]} {[%emt 00:00:09]} 117. Qf1+ {[%clk
00:02:27]} {[%emt 00:00:25]} Ke3 {[%clk 00:02:49]} {[%emt 00:00:26]} 118. Qg1+
{[%clk 00:02:43]} {[%emt 00:00:15]} Kd3 {[%clk 00:01:25]} {[%emt 00:01:52]} 119.
Qg3+ {[%clk 00:03:05]} {[%emt 00:00:06]} Kd2 {[%clk 00:01:31]} {[%emt
00:00:27]} 120. Qf2+ {[%clk 00:03:25]} {[%emt 00:00:08]} Kc3 {[%clk 00:01:00]}
{[%emt 00:01:01]} 121. Qc5+ {[%clk 00:03:47]} {[%emt 00:00:10]} Qc4 {[%clk
00:01:04]} {[%emt 00:00:26]} 122. Qe3+ {[%clk 00:04:02]} {[%emt 00:00:14]} Kb2
{[%clk 00:01:10]} {[%emt 00:00:24]} 123. Qb6+ {[%clk 00:04:25]} {[%emt
00:00:07]} Qb3 {[%emt 00:00:31]} 124. Qd4+ {[%clk 00:04:33]} Ka2 {[%clk
00:01:33]} {[%emt 00:00:29]} 125. Qf2 {[%clk 00:03:54]} {[%emt 00:01:08]} Kb1
{[%clk 00:01:53]} {[%emt 00:00:09]} 0-1

[Event "Masters Tournament (MTO)"]
[Site "Biel, Switzerland"]
[Date "2026.07.20"]
[Round "7.21"]
[White "Rappazzo, Johannes"]
[Black "Kwiatkowski, Jakub"]
[Result "1-0"]
[TimeControl "100+30+30sec/move"]
[WhiteTitle "-"]
[BlackTitle "-"]
[WhiteFideId "1340069"]
[BlackFideId "1348736"]
[WhiteElo "2268"]
[BlackElo "2107"]

1. e4 {[%clk 01:40:58]} c5 {[%clk 01:40:55]} {[%emt 00:00:07]} 2. Nf3 {[%clk
01:41:18]} {[%emt 00:00:09]} d6 {[%clk 01:41:18]} {[%emt 00:00:06]} 3. d4
{[%clk 01:41:46]} {[%emt 00:00:03]} cxd4 {[%clk 01:41:40]} {[%emt 00:00:08]} 4.
Nxd4 {[%clk 01:42:13]} {[%emt 00:00:03]} Nf6 {[%clk 01:42:00]} {[%emt
00:00:10]} 5. Nc3 {[%clk 01:42:39]} {[%emt 00:00:03]} a6 {[%clk 01:42:23]}
{[%emt 00:00:08]} 6. h3 {[%clk 01:42:59]} {[%emt 00:00:10]} e5 {[%clk
01:42:45]} {[%emt 00:00:07]} 7. Nf3 {[%clk 01:43:26]} {[%emt 00:00:03]} Qc7
{[%clk 01:41:57]} {[%emt 00:01:18]} 8. a4 {[%clk 01:43:46]} {[%emt 00:00:11]}
h6 {[%clk 01:39:50]} {[%emt 00:02:36]} 9. Be2 {[%clk 01:43:31]} {[%emt
00:00:45]} Be6 {[%clk 01:39:33]} {[%emt 00:00:47]} 10. Nh2 {[%clk 01:43:23]}
{[%emt 00:00:38]} Be7 {[%clk 01:37:48]} {[%emt 00:02:15]} 11. Ng4 {[%clk
01:43:32]} {[%emt 00:00:21]} Nc6 {[%clk 01:26:07]} {[%emt 00:12:12]} 12. Nxf6+
{[%clk 01:39:39]} {[%emt 00:04:23]} Bxf6 {[%clk 01:23:47]} {[%emt 00:02:49]} 13.
O-O {[%clk 01:36:25]} {[%emt 00:03:44]} Ne7 {[%clk 01:04:58]} {[%emt 00:19:19]}
14. Bg4 {[%clk 01:34:14]} {[%emt 00:02:42]} Bc4 {[%clk 01:00:29]} {[%emt
00:04:58]} 15. Re1 {[%clk 01:29:01]} {[%emt 00:05:43]} Rd8 {[%clk 00:58:18]}
{[%emt 00:02:41]} 16. Qf3 {[%clk 01:14:15]} {[%emt 00:15:16]} Ng6 {[%clk
00:44:37]} {[%emt 00:14:11]} 17. g3 {[%clk 01:03:21]} {[%emt 00:11:24]} Be6
{[%clk 00:40:44]} {[%emt 00:04:23]} 18. a5 {[%clk 00:58:44]} {[%emt 00:05:07]}
Qe7 {[%clk 00:29:13]} {[%emt 00:12:00]} 19. Be3 {[%clk 00:55:15]} {[%emt
00:04:00]} Bxg4 {[%clk 00:21:44]} {[%emt 00:07:58]} 20. hxg4 {[%clk 00:49:21]}
{[%emt 00:06:25]} Bg5 {[%clk 00:21:34]} {[%emt 00:00:40]} 21. Nd5 {[%clk
00:46:49]} {[%emt 00:03:02]} Qd7 {[%clk 00:21:45]} {[%emt 00:00:18]} 22. Bxg5
{[%clk 00:44:59]} {[%emt 00:02:20]} hxg5 {[%clk 00:22:06]} {[%emt 00:00:09]} 23.
Kg2 {[%clk 00:44:31]} {[%emt 00:00:59]} Ne7 {[%clk 00:20:04]} {[%emt 00:02:32]}
24. Nb6 {[%clk 00:38:49]} {[%emt 00:06:12]} Qe6 {[%clk 00:14:22]} {[%emt
00:06:11]} 25. Rh1 {[%clk 00:38:57]} {[%emt 00:00:22]} O-O {[%clk 00:11:43]}
{[%emt 00:03:09]} 26. Rh3 {[%clk 00:30:23]} {[%emt 00:09:05]} f6 {[%clk
00:08:20]} {[%emt 00:03:53]} 27. Rah1 {[%clk 00:28:08]} {[%emt 00:02:44]} Kf7
{[%clk 00:07:50]} {[%emt 00:01:00]} 28. Nd5 {[%clk 00:26:39]} {[%emt 00:02:00]}
Rc8 {[%clk 00:07:06]} {[%emt 00:01:14]} 29. c3 {[%clk 00:25:18]} {[%emt
00:01:51]} Rc5 {[%clk 00:06:58]} {[%emt 00:00:38]} 30. b4 {[%clk 00:23:32]}
{[%emt 00:02:16]} Rxd5 {[%clk 00:04:17]} {[%emt 00:03:11]} 31. exd5 {[%clk
00:21:54]} {[%emt 00:02:08]} Qxd5 {[%clk 00:04:05]} {[%emt 00:00:42]} 32. Qxd5+
{[%clk 00:16:25]} {[%emt 00:05:59]} Nxd5 {[%clk 00:04:26]} {[%emt 00:00:08]} 33.
Rh8 {[%clk 00:16:05]} {[%emt 00:00:50]} Re8 {[%clk 00:02:02]} {[%emt 00:02:55]}
34. Rxe8 {[%clk 00:16:21]} {[%emt 00:00:14]} Kxe8 {[%clk 00:02:27]} {[%emt
00:00:05]} 35. Rd1 {[%clk 00:14:09]} {[%emt 00:02:42]} Nxc3 {[%clk 00:02:42]}
{[%emt 00:00:15]} 36. Rxd6 {[%clk 00:14:31]} {[%emt 00:00:08]} Na4 {[%clk
00:02:19]} {[%emt 00:00:53]} 37. Rd3 {[%clk 00:13:52]} {[%emt 00:01:08]} Nb2
{[%clk 00:01:40]} {[%emt 00:01:09]} 38. Rc3 {[%clk 00:14:01]} {[%emt 00:00:21]}
Kd7 {[%clk 00:01:55]} {[%emt 00:00:16]} 39. Kf3 {[%clk 00:12:20]} {[%emt
00:02:10]} Na4 {[%clk 00:01:55]} {[%emt 00:00:31]} 40. Rc2 {[%clk 00:12:29]}
{[%emt 00:00:21]} g6 {[%clk 00:01:00]} {[%emt 00:01:25]} 41. Ke4 {[%clk
00:11:59]} {[%emt 00:00:59]} Kd6 {[%clk 00:24:44]} {[%emt 00:06:46]} 42. Kd3
{[%clk 00:40:58]} {[%emt 00:01:31]} b6 {[%clk 00:23:31]} {[%emt 00:01:44]} 43.
axb6 {[%clk 00:39:10]} {[%emt 00:02:18]} Nxb6 {[%clk 00:23:50]} {[%emt
00:00:11]} 44. Ra2 {[%clk 00:39:27]} {[%emt 00:00:13]} Kc6 {[%clk 00:24:06]}
{[%emt 00:00:13]} 45. Rxa6 {[%clk 00:36:39]} {[%emt 00:03:19]} Kb5 {[%clk
00:24:27]} {[%emt 00:00:09]} 46. Rxb6+ {[%clk 00:35:52]} {[%emt 00:01:17]} Kxb6
{[%clk 00:24:49]} {[%emt 00:00:09]} 47. Kc4 {[%clk 00:36:05]} {[%emt 00:00:16]}
f5 {[%clk 00:22:41]} {[%emt 00:02:38]} 48. gxf5 {[%clk 00:35:47]} {[%emt
00:00:47]} gxf5 {[%clk 00:23:01]} {[%emt 00:00:10]} 49. Kd5 {[%clk 00:36:15]}
{[%emt 00:00:03]} e4 {[%clk 00:23:05]} {[%emt 00:00:25]} 50. Ke5 {[%clk
00:36:30]} {[%emt 00:00:16]} f4 {[%clk 00:23:23]} {[%emt 00:00:12]} 51. Kxe4
{[%clk 00:36:37]} {[%emt 00:00:23]} fxg3 {[%clk 00:23:42]} {[%emt 00:00:10]} 52.
fxg3 {[%clk 00:37:04]} {[%emt 00:00:03]} Kb5 {[%clk 00:24:03]} {[%emt
00:00:10]} 53. Kf5 {[%clk 00:37:29]} {[%emt 00:00:05]} Kxb4 {[%clk 00:24:27]}
{[%emt 00:00:07]} 54. Kxg5 {[%clk 00:37:56]} {[%emt 00:00:32]} 1-0

[Event "Masters Tournament (MTO)"]
[Site "Biel, Switzerland"]
[Date "2026.07.20"]
[Round "7.22"]
[White "Kukushkin, Ivan"]
[Black "Papaux, Jeremie"]
[Result "1-0"]
[TimeControl "100+30+30sec/move"]
[WhiteTitle "-"]
[BlackTitle "-"]
[WhiteFideId "11634103"]
[BlackFideId "1340867"]
[WhiteElo "2257"]
[BlackElo "2102"]

1. e4 {[%clk 01:38:49]} {[%emt 00:02:10]} c5 {[%clk 01:40:34]} {[%emt
00:00:27]} 2. Nf3 {[%clk 01:37:02]} {[%emt 00:02:17]} Nc6 {[%clk 01:40:33]}
{[%emt 00:00:31]} 3. d4 {[%clk 01:37:02]} {[%emt 00:00:30]} cxd4 {[%clk
01:40:59]} {[%emt 00:00:05]} 4. Nxd4 {[%clk 01:37:27]} {[%emt 00:00:05]} Nf6
{[%clk 01:40:16]} {[%emt 00:01:13]} 5. Nc3 {[%clk 01:37:38]} {[%emt 00:00:18]}
e5 {[%clk 01:39:23]} {[%emt 00:01:23]} 6. Ndb5 {[%clk 01:37:48]} {[%emt
00:00:21]} d6 {[%clk 01:39:48]} {[%emt 00:00:05]} 7. Nd5 {[%clk 01:31:11]}
{[%emt 00:07:06]} Nxd5 {[%clk 01:40:11]} {[%emt 00:00:07]} 8. exd5 {[%clk
01:31:37]} {[%emt 00:00:04]} Ne7 {[%clk 01:40:15]} {[%emt 00:00:25]} 9. c4
{[%clk 01:30:51]} {[%emt 00:01:17]} Ng6 {[%clk 01:40:41]} {[%emt 00:00:04]} 10.
Bd3 {[%clk 01:29:43]} {[%emt 00:01:38]} a6 {[%clk 01:38:30]} {[%emt 00:02:42]}
11. Nc3 {[%clk 01:30:00]} {[%emt 00:00:13]} f5 {[%clk 01:37:37]} {[%emt
00:01:22]} 12. O-O {[%clk 01:26:55]} {[%emt 00:03:35]} Be7 {[%clk 01:35:24]}
{[%emt 00:02:43]} 13. Be3 {[%clk 01:23:03]} {[%emt 00:04:22]} Bg5 {[%clk
01:26:25]} {[%emt 00:09:28]} 14. Qa4+ {[%clk 01:17:43]} {[%emt 00:05:51]} Bd7
{[%clk 01:22:55]} {[%emt 00:04:00]} 15. Qb4 {[%clk 01:14:15]} {[%emt 00:03:58]}
Bxe3 {[%clk 01:16:16]} {[%emt 00:07:09]} 16. fxe3 {[%clk 01:14:38]} {[%emt
00:00:06]} e4 {[%clk 01:16:26]} {[%emt 00:00:21]} 17. Bxe4 {[%clk 01:09:10]}
{[%emt 00:05:59]} O-O {[%clk 01:06:16]} {[%emt 00:10:40]} 18. Bf3 {[%clk
01:08:14]} {[%emt 00:01:25]} Ne5 {[%clk 01:05:56]} {[%emt 00:00:50]} 19. Qxd6
{[%clk 01:05:30]} {[%emt 00:03:14]} Nxc4 {[%clk 01:05:50]} {[%emt 00:00:36]} 20.
Qf4 {[%clk 01:05:24]} {[%emt 00:00:36]} Rc8 {[%clk 01:00:28]} {[%emt 00:05:52]}
21. d6 {[%clk 01:03:11]} {[%emt 00:02:43]} b5 {[%clk 00:43:23]} {[%emt
00:17:35]} 22. Nd5 {[%clk 01:03:10]} {[%emt 00:00:30]} Kh8 {[%clk 00:43:12]}
{[%emt 00:00:41]} 23. Ne7 {[%clk 01:02:41]} {[%emt 00:01:00]} Rb8 {[%clk
00:41:35]} {[%emt 00:02:08]} 24. b3 {[%clk 00:59:43]} {[%emt 00:03:27]} Nb6
{[%clk 00:37:50]} {[%emt 00:04:15]} 25. Rad1 {[%clk 00:59:29]} {[%emt
00:00:44]} Nc8 {[%clk 00:36:12]} {[%emt 00:02:08]} 26. Qh4 {[%clk 00:59:14]}
{[%emt 00:00:44]} Be8 {[%clk 00:32:12]} {[%emt 00:04:31]} 27. Rd4 {[%clk
00:58:27]} {[%emt 00:01:18]} Rf6 {[%clk 00:31:16]} {[%emt 00:01:25]} 28. Nxc8
{[%clk 00:54:01]} {[%emt 00:04:56]} Qxc8 {[%clk 00:31:01]} {[%emt 00:00:44]} 29.
Qe1 {[%clk 00:49:26]} {[%emt 00:05:06]} Qd7 {[%clk 00:29:25]} {[%emt 00:02:05]}
30. Qb4 {[%clk 00:47:03]} {[%emt 00:02:54]} Rb6 {[%clk 00:29:43]} {[%emt
00:00:12]} 31. Rfd1 {[%clk 00:46:40]} {[%emt 00:00:53]} h6 {[%clk 00:27:54]}
{[%emt 00:02:18]} 32. Qc5 {[%clk 00:44:48]} {[%emt 00:02:22]} Rb8 {[%clk
00:27:58]} {[%emt 00:00:26]} 33. Qc7 {[%clk 00:43:00]} {[%emt 00:02:18]} Rc8
{[%clk 00:27:35]} {[%emt 00:00:53]} 34. Rc1 {[%clk 00:39:10]} {[%emt 00:04:21]}
Rxc7 {[%clk 00:24:23]} {[%emt 00:03:42]} 35. dxc7 {[%clk 00:39:27]} {[%emt
00:00:12]} Qe6 {[%clk 00:22:23]} {[%emt 00:02:30]} 36. Kf2 {[%clk 00:38:52]}
{[%emt 00:01:05]} f4 {[%clk 00:21:45]} {[%emt 00:01:09]} 37. c8=Q {[%clk
00:37:46]} {[%emt 00:01:37]} Qxe3+ {[%clk 00:19:22]} {[%emt 00:02:52]} 38. Kf1
{[%clk 00:38:11]} {[%emt 00:00:04]} Re6 {[%clk 00:17:46]} {[%emt 00:02:06]} 39.
Qc3 {[%clk 00:38:24]} {[%emt 00:00:17]} Qe5 {[%clk 00:17:51]} {[%emt 00:00:25]}
40. Re4 {[%clk 00:38:46]} {[%emt 00:00:09]} Qd6 {[%clk 00:17:53]} {[%emt
00:00:28]} 41. Rxe6 {[%clk 00:39:05]} {[%emt 00:00:11]} Qxe6 {[%clk 00:18:18]}
{[%emt 00:00:05]} 42. Qc8 {[%clk 00:39:23]} {[%emt 00:00:12]} Qe3 {[%clk
00:18:28]} {[%emt 00:00:20]} 43. Re1 {[%clk 00:39:36]} {[%emt 00:00:17]} Qd3+
{[%clk 00:18:41]} {[%emt 00:00:16]} 44. Be2 {[%clk 00:39:56]} {[%emt 00:00:10]}
Qg6 {[%clk 00:18:59]} {[%emt 00:00:12]} 45. Bc4 {[%clk 00:39:45]} {[%emt
00:00:41]} f3 {[%clk 00:19:19]} {[%emt 00:00:11]} 46. Rxe8+ {[%clk 00:40:08]}
{[%emt 00:00:07]} 1-0